bitfinex/quotes_ETHUSD_20251010
["timestamp","ask_amount","ask_price","bid_price","bid_amount"]
[1760083955197,5.29138888,4329.4,4329.3,1e-08]
[1760083955490,14.22938888,4329.4,4329.3,1e-08]
[1760083960964,5.29138888,4329.4,4329.3,1e-08]
[1760083961299,14.23138888,4329.4,4329.3,1e-08]
[1760083962285,2.73778888,4329.4,4329.3,1e-08]
[1760083962796,11.19278888,4329.4,4329.3,1e-08]
[1760083963298,8.84478888,4329.4,4329.3,1e-08]
[1760083963678,9.27278888,4329.4,4329.3,1e-08]
[1760083963987,11.19278888,4329.4,4329.3,1e-08]
[1760083967573,4.65778888,4329.4,4329.3,1e-08]
[1760083967871,11.22166124,4329.4,4329.3,1e-08]
[1760083968085,11.19278888,4329.4,4329.3,1e-08]
[1760083969507,4.68548888,4329.4,4329.3,1e-08]
[1760083975480,8.84475305,4329.5,4329.3,1e-08]
[1760083975807,2.33866124,4329.4,4329.3,1e-08]
[1760083977015,2.78036124,4329.4,4329.3,1e-08]
[1760083977609,0.47057236,4329.4,4329.3,1e-08]
[1760083977809,6.56287236,4329.4,4329.3,1e-08]
[1760083978010,2.30968458,4329.6,4329.3,1e-08]
[1760083978317,3.7492,4329.5,4329.3,1e-08]
[1760083979016,0.02887236,4329.4,4329.3,1e-08]
[1760083980905,0.1172,4329.5,4329.3,1e-08]
[1760083981104,0.002,4329.5,4329.4,2.30978888]
[1760083981305,0.002,4329.5,4329.3,2.63643266]
[1760083981514,0.002,4329.5,4329.3,2.30983266]
[1760083981695,0.002,4329.5,4329.4,0.01426929]
[1760083981881,2.75148888,4329.4,4329.3,1e-08]
[1760083982082,2.89556124,4329.4,4329.3,1e-08]
[1760083983211,9.42956124,4329.4,4329.3,1e-08]
[1760083983398,11.32068888,4329.4,4329.3,1e-08]
[1760083984024,2.0352,4329.4,4329.3,1e-08]
[1760083984191,0.1152,4329.4,4329.3,1e-08]
[1760083984995,2.42498888,4329.4,4329.3,1e-08]
[1760083985204,2.89556124,4329.4,4329.3,1e-08]
[1760083985403,2.86668888,4329.4,4329.3,1e-08]
[1760083985604,0.5569,4329.4,4329.3,1e-08]
[1760083986329,2.86668888,4329.4,4329.3,1e-08]
[1760083987611,0.5569,4329.4,4329.3,1e-08]
[1760083987928,0.1152,4329.4,4329.3,1e-08]
[1760083988799,0.002,4329.5,4329.3,1e-08]
[1760083989003,0.002,4329.5,4329.3,2.30982873]
[1760083989200,0.002,4329.5,4329.4,0.24677924]
[1760083989441,0.002,4329.5,4329.4,2.88316812]
[1760083989597,0.002,4329.5,4329.4,2.55656812]
[1760083990332,0.002,4329.5,4329.4,2.99836812]
[1760083990536,0.002,4329.5,4329.4,2.88316762]
[1760083990720,0.002,4329.5,4329.4,2.98409883]
[1760083990921,0.002,4329.5,4329.4,2.99836762]
[1760083992133,0.002,4329.5,4329.4,2.98409883]
[1760083992325,0.002,4329.5,4329.4,2.99836762]
[1760084000943,0.002,4329.5,4329.4,2.65749883]
[1760084001143,0.602,4329.5,4329.4,2.98409883]
[1760084001459,0.602,4329.5,4329.4,7.16199893]
[1760084001662,0.602,4329.5,4329.4,7.14773014]
[1760084004583,0.602,4329.5,4329.4,7.03253014]
[1760084006264,0.602,4329.5,4329.4,2.86889883]
[1760084006468,0.602,4329.5,4329.3,1e-08]
[1760084006757,0.47057236,4329.4,4329.3,1e-08]
[1760084009198,2.78036124,4329.4,4329.3,1e-08]
[1760084010856,0.02887236,4329.4,4329.3,1e-08]
[1760084011099,0.602,4329.5,4329.4,2.30978888]
[1760084011272,0.602,4329.5,4329.4,3.53052027]
[1760084011857,0.602,4329.5,4329.4,3.51625148]
[1760084012092,0.602,4329.5,4329.4,3.53052027]
[1760084014494,0.602,4329.5,4329.4,3.64572027]
[1760084016992,0.602,4329.5,4329.4,3.63145148]
[1760084017197,0.602,4329.5,4329.4,3.64572027]
[1760084019718,0.602,4329.5,4329.4,3.63145148]
[1760084020420,0.602,4329.5,4329.4,3.64572027]
[1760084020616,0.602,4329.5,4329.4,3.51625148]
[1760084020784,0.602,4329.5,4329.4,3.63145148]
[1760084020984,0.602,4329.5,4329.4,3.64572027]
[1760084021184,0.002,4329.5,4329.4,3.64572027]
[1760084021384,0.002,4329.5,4329.4,5.56572027]
[1760084021592,0.002,4329.5,4329.4,5.55145148]
[1760084021796,0.002,4329.5,4329.4,6.18505148]
[1760084021995,0.002,4329.9,4329.8,17.05410336]
[1760084022195,0.002,4329.9,4329.8,19.29768191]
[1760084022415,0.002,4329.9,4329.8,28.55928191]
[1760084029505,0.002,4329.9,4329.8,15.73475405]
[1760084030601,0.002,4329.9,4329.8,6.79975405]
[1760084030925,0.002,4329.9,4329.8,15.73175405]
[1760084031128,0.002,4329.9,4329.8,6.79975405]
[1760084031289,0.002,4329.9,4329.8,15.73175405]
[1760084033197,0.002,4329.9,4329.8,15.82426879]
[1760084034194,1e-08,4330.1,4330.0,2.30946882]
[1760084034439,1e-08,4330.1,4330.0,6.06724503]
[1760084034654,1e-08,4330.1,4330.0,15.32584503]
[1760084035518,1e-08,4330.1,4330.0,20.22422987]
[1760084036519,1e-08,4330.1,4330.0,10.96562987]
[1760084036755,1e-08,4330.1,4330.0,2.30946882]
[1760084036920,1e-08,4330.1,4330.0,8.83846882]
[1760084037450,0.60000001,4330.1,4330.0,8.83846882]
[1760084037856,0.60000001,4330.1,4330.0,6.529]
[1760084038414,0.60000001,4330.1,4330.0,8.83846882]
[1760084038619,0.60000001,4330.1,4330.0,6.529]
[1760084038841,0.60000001,4330.1,4330.0,8.83846882]
[1760084039016,0.60000001,4330.1,4330.0,6.529]
[1760084039953,0.60000001,4330.1,4330.0,8.83846882]
[1760084040153,0.60000001,4330.1,4330.0,9.16506882]
[1760084040355,0.60000001,4330.1,4330.0,10.81389123]
[1760084041458,1e-08,4330.1,4330.0,12.73389123]
[1760084050977,1e-08,4330.1,4330.0,12.84909123]
[1760084051279,1e-08,4330.1,4330.0,15.25109123]
[1760084051483,1e-08,4330.1,4330.0,15.34360319]
[1760084053554,1e-08,4330.1,4330.0,6.41260319]
[1760084053755,1e-08,4330.1,4330.0,15.34360319]
[1760084054561,1e-08,4330.1,4330.0,6.41260319]
[1760084054898,1e-08,4330.1,4330.0,20.24198803]
[1760084056852,1e-08,4330.1,4330.0,11.31098803]
[1760084057055,1e-08,4330.1,4330.0,16.58065366]
[1760084061290,0.60000001,4330.1,4330.0,7.64965366]
[1760084061589,1e-08,4330.1,4330.0,0.1152]
[1760084061887,0.42840001,4330.1,4330.0,5.807]
[1760084062308,1e-08,4330.1,4330.0,5.807]
[1760084063601,0.0288677,4330.1,4330.0,5.807]
[1760084063822,1e-08,4330.1,4330.0,5.807]
[1760084064381,0.42840001,4330.1,4330.0,5.807]
[1760084064697,0.42840001,4330.1,4330.0,6.528]
[1760084066057,1.02840001,4330.1,4330.0,6.528]
[1760084066259,3.33781549,4330.1,4330.0,6.528]
[1760084066499,1.02840001,4330.1,4330.0,6.528]
[1760084067261,0.1152,4330.0,4329.8,6.528]
[1760084067492,0.552,4330.0,4329.8,6.528]
[1760084068494,0.1152,4330.0,4329.8,6.528]
[1760084068797,0.60000001,4330.1,4329.9,2.30952215]
[1760084069995,0.4368,4330.0,4329.8,6.528]
[1760084070299,0.4368,4329.9,4329.8,6.528]
[1760084070767,0.6682,4329.9,4329.6,0.001]
[1760084070967,0.46566969,4329.8,4329.6,0.001]
[1760084071496,0.4368,4329.7,4329.6,0.001]
[1760084071872,0.02886902,4329.9,4329.6,0.001]
[1760084073465,0.46566902,4329.9,4329.6,0.001]
[1760084073976,0.02886902,4329.9,4329.6,0.001]
[1760084074698,0.46566902,4329.9,4329.6,0.001]
[1760084075513,0.6682,4329.8,4329.6,0.001]
[1760084075717,2.30962884,4329.7,4329.6,0.001]
[1760084075861,2.3384992,4329.7,4329.6,0.001]
[1760084076058,2.7752992,4329.7,4329.6,0.001]
[1760084076659,4.6952992,4329.7,4329.6,0.001]
[1760084076861,4.66642884,4329.7,4329.6,0.001]
[1760084077300,0.60000001,4330.1,4329.6,0.001]
[1760084077597,0.4368,4330.0,4329.6,0.001]
[1760084077963,0.4368,4329.9,4329.6,0.001]
[1760084078380,2.7463457,4329.9,4329.6,0.001]
[1760084078599,2.3095457,4329.9,4329.6,0.001]
[1760084078902,0.4368,4329.8,4329.6,0.001]
[1760084079587,0.4368,4329.7,4329.6,0.001]
[1760084080178,2.74642884,4329.7,4329.6,0.001]
[1760084080811,2.7752992,4329.7,4329.6,0.001]
[1760084080970,2.74642884,4329.7,4329.6,0.001]
[1760084081306,2.7752992,4329.7,4329.6,0.001]
[1760084081806,4.6952992,4329.7,4329.6,0.001]
[1760084082910,4.66642884,4329.7,4329.6,0.001]
[1760084088441,1.92,4329.7,4329.6,0.001]
[1760084088725,4.22962884,4329.7,4329.6,0.001]
[1760084088929,4.7050992,4329.7,4329.6,0.001]
[1760084089224,4.67622884,4329.7,4329.6,0.001]
[1760084089429,1.92,4329.7,4329.6,0.001]
[1760084089626,4.22962884,4329.7,4329.6,0.001]
[1760084089842,2.30962884,4329.7,4329.6,0.001]
[1760084090133,2.75622884,4329.7,4329.6,0.001]
[1760084091499,2.7850992,4329.7,4329.6,0.001]
[1760084094232,0.2314,4329.9,4329.6,0.001]
[1760084094438,1.92,4330.0,4329.6,0.001]
[1760084094439,2.3666,4330.0,4329.6,0.001]
[1760084094631,0.4466,4329.9,4329.6,0.001]
[1760084094853,2.7561575,4329.9,4329.6,0.001]
[1760084095014,7.12900001,4330.1,4329.6,0.001]
[1760084095215,0.1152,4329.7,4329.6,0.001]
[1760084097028,0.60000001,4330.1,4329.6,0.001]
[1760084097029,0.71520001,4330.1,4329.7,2.30959219]
[1760084097245,0.60000001,4330.1,4329.9,4.16523206]
[1760084097619,0.60000001,4330.1,4330.0,0.01426129]
[1760084097940,0.60000001,4330.1,4330.0,2.32373011]
[1760084099241,0.60000001,4330.1,4330.0,0.01426129]
[1760084100447,0.60000001,4330.1,4329.9,6.47470222]
[1760084100648,0.60000001,4330.1,4329.9,8.05249858]
[1760084100848,0.60000001,4330.1,4329.9,5.74302842]
[1760084101024,0.60000001,4330.1,4329.6,0.1162]
[1760084101214,0.4447,4330.0,4329.6,0.1162]
[1760084101415,2.30956693,4329.9,4329.6,0.001]
[1760084101625,0.02886969,4329.8,4329.6,0.001]
[1760084101841,0.4447,4329.8,4329.6,0.001]
[1760084102036,0.4447,4329.7,4329.6,0.001]
[1760084102569,0.60000001,4330.1,4330.0,2.30946882]
[1760084102870,0.60000001,4330.1,4330.0,9.27926882]
[1760084105758,1e-08,4330.1,4330.0,15.36450088]
[1760084105924,1e-08,4330.1,4330.0,15.96450089]
[1760084106256,1e-08,4330.1,4330.0,15.36450088]
[1760084106418,1e-08,4330.1,4330.0,17.61627133]
[1760084106622,1e-08,4330.1,4330.0,17.708785]
[1760084106818,1e-08,4330.1,4330.0,13.54355294]
[1760084107223,1e-08,4330.1,4330.0,17.708785]
[1760084109560,0.01,4330.9,4330.5,2.30920217]
[1760084109781,0.01,4330.9,4330.5,14.93568835]
[1760084110084,0.01,4330.9,4330.5,15.36323423]
[1760084110380,0.01,4330.9,4330.5,15.24803423]
[1760084112491,0.01,4330.9,4330.5,8.72103423]
[1760084112692,0.01,4330.9,4330.5,19.25365232]
[1760084118686,0.01,4330.9,4330.5,19.88725232]
[1760084119485,0.01,4330.9,4330.5,19.97975251]
[1760084120389,0.01,4330.9,4330.5,20.09495251]
[1760084125703,0.01,4330.9,4330.7,2.30909552]
[1760084125995,0.01,4330.9,4330.8,14.87525314]
[1760084126181,0.01,4330.9,4330.8,17.61184471]
[1760084126382,0.01,4330.9,4330.8,17.70434127]
[1760084126600,0.002,4331.5,4331.4,2.30872235]
[1760084126776,0.01,4331.9,4331.8,2.30850916]
[1760084126982,0.01,4332.9,4332.8,4.16523206]
[1760084127181,0.01,4332.9,4332.8,10.68923206]
[1760084127899,0.01,4332.9,4332.8,12.99720842]
[1760084128466,0.01,4332.9,4332.8,13.32380842]
[1760084128978,0.01,4332.9,4332.8,13.43900842]
[1760084129906,0.01,4332.9,4332.8,8.94717636]
[1760084130107,0.01,4332.9,4332.8,2.42317636]
[1760084130612,0.01,4332.9,4332.8,8.94717636]
[1760084131266,0.01,4332.9,4332.8,2.42317636]
[1760084131467,0.01,4332.9,4332.8,8.94617636]
[1760084131815,0.01,4332.9,4332.8,11.06469526]
[1760084138649,0.01,4332.9,4332.8,4.54169526]
[1760084138815,0.01,4332.9,4332.8,13.46569526]
[1760084139354,0.01,4332.9,4332.8,4.54169526]
[1760084139740,0.01,4332.9,4332.8,17.6451508]
[1760084139942,0.01,4332.9,4332.8,17.63092732]
[1760084140138,0.01,4332.9,4332.8,19.55092732]
[1760084140448,0.012,4332.9,4332.8,19.55092732]
[1760084141350,0.002,4333.4,4333.3,2.30771005]
[1760084141651,0.002,4333.4,4333.3,13.469708]
[1760084141847,0.002,4333.4,4333.3,13.89729118]
[1760084142154,0.002,4333.4,4333.3,13.98973472]
[1760084142352,0.002,4333.4,4333.3,15.79453472]
[1760084142651,0.002,4333.8,4333.7,2.30749705]
[1760084142866,0.002,4333.8,4333.7,17.96923562]
[1760084143020,0.002,4333.8,4333.7,18.29583562]
[1760084143220,0.002,4333.8,4333.7,9.37283562]
[1760084143477,0.002,4333.8,4333.7,18.29583562]
[1760084144151,0.002,4333.8,4333.7,2.96100356]
[1760084144350,0.002,4333.8,4333.7,15.39572911]
[1760084144718,0.002,4333.8,4333.7,4.16523206]
[1760084144922,0.002,4333.8,4333.5,2.30756077]
[1760084145127,0.002,4333.8,4333.6,8.14952995]
[1760084145428,0.002,4333.8,4333.7,6.47272911]
[1760084145748,0.002,4333.8,4333.7,8.17516187]
[1760084145953,0.002,4333.8,4333.7,8.50176187]
[1760084149475,0.002,4333.8,4333.7,9.22757402]
[1760084152482,0.002,4333.8,4333.7,9.34277402]
[1760084154258,0.002,4333.8,4333.7,7.64034126]
[1760084155792,0.002,4333.8,4333.7,9.56034126]
[1760084158661,0.002,4333.8,4333.7,18.48034126]
[1760084160485,0.002,4333.8,4333.7,19.11394126]
[1760084160900,0.002,4334.3,4334.2,2.30723086]
[1760084161199,0.002,4334.3,4334.2,14.36973189]
[1760084161499,0.002,4334.3,4334.2,14.81153189]
[1760084162074,0.002,4334.3,4334.2,15.44513189]
[1760084162473,0.01,4334.9,4334.4,2.30711423]
[1760084162702,0.01,4334.9,4334.8,9.11795571]
[1760084162902,0.01,4334.9,4334.8,17.67177306]
[1760084163107,0.01,4334.9,4334.8,17.99837306]
[1760084164185,0.01,4334.9,4334.8,18.63197306]
[1760084164370,0.01,4335.9,4335.8,2.30637944]
[1760084164570,0.01,4335.9,4335.8,13.72960721]
[1760084164775,0.01,4335.9,4335.8,14.04202365]
[1760084166782,0.01,4335.9,4335.4,4.89104421]
[1760084167001,0.01,4335.9,4335.5,8.087]
[1760084167175,0.01,4335.9,4335.4,2.30657341]
[1760084167176,0.4683,4335.8,4334.7,4.89104421]
[1760084167379,0.4683,4335.8,4335.2,2.30664572]
[1760084167574,0.4683,4335.8,4335.3,5.899]
[1760084167773,0.01,4335.9,4335.3,5.899]
[1760084168307,0.01,4335.9,4335.3,8.20563893]
[1760084168811,0.01,4335.9,4335.4,0.01418737]
[1760084169010,0.01,4335.9,4335.5,6.8436]
[1760084169172,0.01,4335.9,4335.6,2.41518572]
[1760084169369,0.01,4335.9,4335.8,2.30637944]
[1760084169808,0.01,4335.9,4335.8,2.63297944]
[1760084170826,0.01,4335.9,4335.8,2.30637944]
[1760084171011,0.01,4335.9,4335.8,2.63297944]
[1760084171217,0.01,4335.9,4335.8,4.57640649]
[1760084172042,0.01,4335.9,4335.8,4.26399005]
[1760084172218,0.01,4335.9,4335.8,4.59059005]
[1760084172391,0.01,4335.9,4335.8,4.57640649]
[1760084172931,0.01,4336.9,4335.8,4.57640649]
[1760084172932,0.01,4336.9,4336.8,2.30584762]
[1760084173097,0.01,4336.9,4336.8,16.11389183]
[1760084173296,0.01,4336.9,4336.8,16.85000534]
[1760084173826,0.01,4336.9,4336.8,14.13464421]
[1760084174027,0.01,4336.9,4336.8,11.22284762]
[1760084174530,0.01,4336.9,4336.8,11.54944762]
[1760084176300,0.01,4336.9,4336.8,13.46944762]
[1760084178730,0.01,4336.9,4336.8,13.46744762]
[1760084178938,0.01,4336.9,4336.8,15.71921807]
[1760084179241,0.012,4336.9,4336.8,15.71921807]
[1760084179821,0.012,4336.9,4336.8,6.80421807]
[1760084180143,0.012,4336.9,4336.8,13.31921807]
[1760084180350,0.012,4336.9,4336.8,15.71921807]
[1760084180726,0.012,4336.9,4336.8,15.71821807]
[1760084181716,0.012,4336.9,4336.8,13.31821807]
[1760084181916,0.012,4336.9,4336.8,6.80421807]
[1760084182139,0.012,4336.9,4336.8,15.71821807]
[1760084182747,0.012,4336.9,4336.8,15.83341807]
[1760084183149,0.012,4336.9,4336.8,6.91941807]
[1760084183554,0.012,4336.9,4336.8,11.28097045]
[1760084183715,0.012,4336.9,4336.8,0.1152]
[1760084183913,0.4803,4336.9,4336.8,6.0832]
[1760084184512,0.012,4336.9,4336.8,6.0832]
[1760084185597,0.012,4336.9,4336.8,8.93504762]
[1760084185750,0.012,4336.9,4336.8,6.6292]
[1760084186254,0.012,4336.9,4336.8,8.93504762]
[1760084186461,0.012,4336.9,4336.8,6.6292]
[1760084187984,0.4694,4336.9,4336.8,6.6292]
[1760084188186,0.4694,4336.9,4336.8,0.1152]
[1760084188374,0.4694,4336.9,4336.0,4.89104421]
[1760084188375,2.77519446,4336.9,4336.0,4.89104421]
[1760084188694,2.77519446,4336.9,4336.5,0.1152]
[1760084188877,2.77519446,4336.9,4336.6,6.514]
[1760084188878,0.012,4336.9,4336.6,6.514]
[1760084189211,0.4574,4336.8,4336.6,6.514]
[1760084189388,0.4574,4336.8,4336.5,0.1152]
[1760084189687,0.4574,4336.8,4336.7,6.514]
[1760084190212,0.012,4336.9,4336.7,6.514]
[1760084190492,0.4694,4336.9,4336.7,6.514]
[1760084190664,0.4574,4336.8,4336.7,6.514]
[1760084191766,0.4574,4336.8,4336.5,0.1152]
[1760084191767,0.012,4336.9,4336.5,2.42115728]
[1760084191984,0.012,4336.9,4336.6,6.514]
[1760084192359,0.012,4336.9,4336.7,2.30587489]
[1760084192593,0.012,4336.9,4336.6,8.81994143]
[1760084192794,0.012,4336.9,4336.6,6.514]
[1760084193191,0.012,4336.9,4336.6,8.819944]
[1760084194591,0.012,4336.9,4336.6,6.514]
[1760084194896,0.012,4336.9,4336.7,2.64662816]
[1760084195098,0.012,4336.9,4336.7,0.01417159]
[1760084195803,0.012,4336.9,4336.8,6.514]
[1760084196004,0.4694,4336.9,4336.1,2.30618255]
[1760084196206,0.4574,4336.8,4336.2,8.914]
[1760084196368,0.4574,4336.8,4336.3,2.30610571]
[1760084196573,0.4574,4336.7,4336.4,2.30605756]
[1760084196900,0.4574,4336.7,4336.2,8.914]
[1760084196901,0.4574,4336.7,4336.5,8.81998117]
[1760084197070,0.012,4336.9,4336.5,8.81998117]
[1760084197271,0.4694,4336.9,4336.5,8.81998117]
[1760084198203,0.4574,4336.8,4336.5,6.514]
[1760084198870,0.012,4336.9,4336.5,6.514]
[1760084199066,0.012,4336.9,4336.8,2.30584762]
[1760084199413,0.012,4336.9,4336.8,8.81984762]
[1760084199578,0.012,4336.9,4336.8,9.14644762]
[1760084200195,0.012,4336.9,4336.8,6.8406]
[1760084200510,0.012,4336.9,4336.8,8.81984762]
[1760084201272,0.012,4336.9,4336.8,6.514]
[1760084202199,0.012,4336.9,4336.8,8.81984762]
[1760084203309,0.012,4336.9,4336.8,6.514]
[1760084203647,0.4694,4336.9,4336.8,6.513]
[1760084203811,0.012,4336.9,4336.8,6.513]
[1760084205018,0.012,4336.9,4335.5,2.63312389]
[1760084205232,0.04082243,4336.9,4336.4,0.1152]
[1760084205436,0.04082243,4336.9,4336.5,5.959]
[1760084205726,0.4574,4336.8,4336.5,5.959]
[1760084205885,0.4574,4336.8,4336.4,0.1152]
[1760084206182,0.4574,4336.8,4336.5,6.513]
[1760084206586,0.4574,4336.8,4336.4,0.1152]
[1760084206587,0.4574,4336.8,4336.6,6.513]
[1760084206833,0.4665,4336.7,4336.4,0.1152]
[1760084206991,2.30617427,4336.2,4336.1,6.513]
[1760084207193,2.77267427,4336.2,4336.0,6.513]
[1760084207397,0.02882774,4336.1,4336.0,6.513]
[1760084207602,0.49532774,4336.1,4335.9,6.513]
[1760084207804,0.49532774,4336.1,4335.8,0.001]
[1760084207805,2.30632625,4335.9,4335.8,0.001]
[1760084207990,2.56925532,4335.9,4335.8,0.001]
[1760084208189,3.03575532,4335.9,4335.8,0.001]
[1760084208732,4.95575532,4335.9,4335.8,0.001]
[1760084209038,4.92692625,4335.9,4335.8,0.001]
[1760084209548,5.56052625,4335.9,4335.8,0.001]
[1760084209718,14.47452625,4335.9,4335.8,0.001]
[1760084209939,16.41134359,4335.9,4335.8,0.001]
[1760084210232,20.80557046,4335.9,4335.8,0.001]
[1760084211517,20.07022602,4335.9,4335.8,0.001]
[1760084212432,17.67022602,4335.9,4335.8,0.001]
[1760084212739,20.07022602,4335.9,4335.8,0.001]
[1760084213216,18.63022602,4335.9,4335.8,0.001]
[1760084214903,24.22592579,4335.9,4335.8,0.001]
[1760084215708,20.07022602,4335.9,4335.8,0.001]
[1760084217661,28.71891395,4335.9,4335.8,0.001]
[1760084219007,28.72091395,4335.9,4335.8,0.001]
[1760084219841,27.28091395,4335.9,4335.8,0.001]
[1760084220545,14.47952625,4335.9,4335.8,0.001]
[1760084222044,27.88391395,4335.9,4335.8,0.001]
[1760084222488,15.07952625,4335.9,4335.8,0.001]
[1760084224966,6.16252625,4335.9,4335.8,0.001]
[1760084225140,15.08052625,4335.9,4335.8,0.001]
[1760084226639,3.60892625,4335.9,4335.8,0.001]
[1760084227055,5.52892625,4335.9,4335.8,0.001]
[1760084227263,3.60892625,4335.9,4335.8,0.001]
[1760084227447,3.37482625,4335.9,4335.8,0.001]
[1760084228137,0.7172,4335.9,4335.8,0.001]
[1760084228343,3.02352625,4335.9,4335.8,0.001]
[1760084228544,0.7172,4335.9,4335.8,0.001]
[1760084228855,3.02352625,4335.9,4335.8,0.001]
[1760084229045,1.169,4335.9,4335.8,0.001]
[1760084229242,0.602,4335.9,4335.8,0.001]
[1760084230092,0.602,4335.9,4335.8,0.24468109]
[1760084230304,0.602,4335.9,4335.8,0.001]
[1760084231605,0.602,4335.9,4335.8,2.63397944]
[1760084231908,0.602,4335.9,4335.8,2.74917944]
[1760084232601,0.602,4335.9,4335.8,0.1162]
[1760084233578,0.602,4335.9,4335.8,9.0332]
[1760084233756,0.602,4335.9,4335.8,10.16716769]
[1760084234472,0.602,4335.9,4335.8,1.25016769]
[1760084234674,0.602,4335.9,4335.8,0.001]
[1760084234675,3.36012625,4335.9,4335.8,0.001]
[1760084234879,3.58452625,4335.9,4335.8,0.001]
[1760084235281,1.2782,4335.9,4335.8,0.001]
[1760084235478,1.0538,4335.9,4335.8,0.001]
[1760084235680,0.602,4335.9,4335.8,0.001]
[1760084236684,2.90832625,4335.9,4335.8,0.001]
[1760084237000,0.602,4335.9,4335.8,0.001]
[1760084237498,2.90832625,4335.9,4335.8,0.001]
[1760084238373,3.36012625,4335.9,4335.8,0.001]
[1760084238574,3.58452625,4335.9,4335.8,0.001]
[1760084238779,3.72855532,4335.9,4335.8,0.001]
[1760084239117,3.50415532,4335.9,4335.8,0.001]
[1760084239469,0.74602907,4335.9,4335.8,0.001]
[1760084239715,0.7172,4335.9,4335.8,0.001]
[1760084240113,0.74602907,4335.9,4335.8,0.001]
[1760084240316,0.7172,4335.9,4335.8,0.001]
[1760084240491,3.02352625,4335.9,4335.8,0.001]
[1760084240889,0.7172,4335.9,4335.8,0.001]
[1760084241409,3.02352625,4335.9,4335.8,0.001]
[1760084241615,3.05235532,4335.9,4335.8,0.001]
[1760084241780,0.74602907,4335.9,4335.8,0.001]
[1760084241981,3.05235532,4335.9,4335.8,0.001]
[1760084242412,0.74602907,4335.9,4335.8,0.001]
[1760084242617,0.7172,4335.9,4335.8,0.001]
[1760084244114,0.74602907,4335.9,4335.8,0.001]
[1760084244318,1.19782907,4335.9,4335.8,0.001]
[1760084244916,0.74602907,4335.9,4335.8,0.001]
[1760084245128,3.05235532,4335.9,4335.8,0.001]
[1760084245992,3.50415532,4335.9,4335.8,0.001]
[1760084246993,0.74602907,4335.9,4335.8,0.001]
[1760084247290,1.1563,4335.9,4335.8,0.001]
[1760084247522,1.18512907,4335.9,4335.8,0.001]
[1760084248127,0.74602907,4335.9,4335.8,0.001]
[1760084248328,0.7172,4335.9,4335.8,0.001]
[1760084248532,1.18512907,4335.9,4335.8,0.001]
[1760084248688,3.49145532,4335.9,4335.8,0.001]
[1760084249395,1.18512907,4335.9,4335.8,0.001]
[1760084250730,3.49145532,4335.9,4335.8,6.516]
[1760084251631,1.18512907,4335.9,4335.8,6.516]
[1760084251835,3.49145532,4335.9,4335.8,6.516]
[1760084253232,1.18512907,4335.9,4335.8,6.516]
[1760084253436,0.74602907,4335.9,4335.8,6.516]
[1760084253646,0.7172,4335.9,4335.8,0.001]
[1760084253933,3.02352625,4335.9,4335.8,6.516]
[1760084254137,0.7172,4335.9,4335.8,6.516]
[1760084255331,3.02352625,4335.9,4335.8,0.001]
[1760084255632,0.7172,4335.9,4335.8,6.516]
[1760084255844,3.02352625,4335.9,4335.8,0.001]
[1760084256132,0.7172,4335.9,4335.8,6.516]
[1760084256331,0.74602907,4335.9,4335.8,6.516]
[1760084256901,3.05235532,4335.9,4335.8,6.516]
[1760084257113,0.7172,4335.9,4335.8,6.516]
[1760084257312,0.7172,4335.9,4335.8,11.97626681]
[1760084258144,0.7172,4335.9,4335.8,10.66924255]
[1760084258640,0.602,4335.9,4335.8,13.41742199]
[1760084260249,0.602,4335.9,4335.8,15.33742199]
[1760084261916,0.602,4335.9,4335.8,13.09082199]
[1760084262248,0.602,4335.9,4335.8,15.81742199]
[1760084262474,0.602,4335.9,4335.8,18.06919244]
[1760084263975,0.602,4335.9,4335.8,17.74159244]
[1760084264426,0.602,4335.9,4335.8,9.15419244]
[1760084264628,0.602,4335.9,4335.8,18.06819244]
[1760084265422,0.602,4335.9,4335.8,19.98819244]
[1760084267419,0.602,4335.9,4335.8,11.07419244]
[1760084267624,0.602,4335.9,4335.8,17.74159244]
[1760084267830,0.602,4335.9,4335.8,18.06819244]
[1760084269631,0.602,4335.9,4335.8,19.98819244]
[1760084271059,0.002,4335.9,4335.8,19.98819244]
[1760084273062,0.002,4335.9,4335.8,29.59019244]
[1760084273559,0.002,4335.9,4335.8,30.32210689]
[1760084276767,0.01,4336.9,4336.8,2.30584762]
[1760084276929,0.01,4336.9,4336.8,16.10400462]
[1760084277125,0.01,4336.9,4336.8,16.43060462]
[1760084277331,0.01,4336.9,4336.8,18.419459]
[1760084277962,0.01,4336.9,4336.8,20.339459]
[1760084279070,0.01,4336.9,4336.8,20.012859]
[1760084279809,0.01,4336.9,4336.8,2.4]
[1760084280113,0.01,4336.9,4336.8,6.513]
[1760084280409,0.01,4336.9,4336.8,8.913]
[1760084281470,0.01,4336.9,4336.7,4.885157]
[1760084281670,0.4611,4336.9,4336.8,8.913]
[1760084282070,0.4611,4336.9,4336.1,4.885157]
[1760084282271,2.76690885,4336.9,4336.2,11.19011952]
[1760084282470,0.01,4336.9,4336.3,0.0141749]
[1760084282670,0.01,4336.9,4336.2,11.19014393]
[1760084282671,0.01,4336.9,4336.5,4.885157]
[1760084282871,0.01,4336.9,4336.6,6.513]
[1760084283272,0.01,4336.9,4336.5,7.19115491]
[1760084283515,0.4511,4336.8,4336.2,0.62987353]
[1760084283673,0.01,4336.9,4336.6,2.4]